{"text_format":"3","workbook":"xlsx","n_sheets":5,"sheets":["Dashboard","Expenditures & Income","Budget Report","Data Lists","Category PivotTable"],"not_rendered":{"charts":3,"defined_names":18,"pivot_tables":2},"read":"whole","date_system":"1900"}

{"sheet":"Dashboard","index":0,"n_rows":21,"n_cols":16,"rows_kept":21,"merged":[[5,2,5,3],[8,9,8,10],[9,9,9,10],[10,9,10,10]]}
[]
[null,null,"Semi-Monthly Home Budget",{"$nulls":12},"DASHBOARD"]
[]
[]
[]
[null,null,{"$f":"CHOOSE(MonthNumber,\"January\",\"February\",\"March\",\"April\",\"May\",\"June\",\"July\",\"August\",\"September\",\"October\",\"November\",\"December\")","v":"August"},null,8,{"$nulls":5},2012]
[]
[]
[null,null,"MONTH TOTALS","Monthly Totals",{"$nulls":5},"ANNUAL TOTALS",null,"Annual Totals"]
[null,null,"INCOME","Expenditures",{"$f":"SUMIF(Expenditures[DATE],\"<=\"&DateMonthEnd,Expenditures[AMOUNT])-SUMIF(Expenditures[DATE],\"<\"&DateMonthStart,Expenditures[AMOUNT])","v":{"v":3592,"d":"$3,592"}},{"$nulls":4},"INCOME",null,"Expenditures",{"$f":"SUM(IF(YEAR(Expenditures[DATE])=K6,Expenditures[AMOUNT]))","v":{"v":10242,"d":"$10,242"}}]
[null,null,"EXPENDITURES","Income",{"$f":"SUMIF(Income[DATE],\"<=\"&DateMonthEnd,Income[AMOUNT])-SUMIF(Income[DATE],\"<\"&DateMonthStart,Income[AMOUNT])","v":{"v":2600,"d":"$2,600"}},{"$nulls":4},"EXPENDITURES",null,"Income",{"$f":"SUM(IF(YEAR(Income[DATE])=K6,Income[AMOUNT]))","v":{"v":12700,"d":"$12,700"}}]
[]
[]
[]
[]
[]
[{"$nulls":3},"JANUARY","FEBRUARY","MARCH","APRIL","MAY","JUNE","JULY","AUGUST","SEPTEMBER","OCTOBER","NOVEMBER","DECEMBER"]
[null,null,"Income 1-15",{"$f":"SUMIFS(Income[AMOUNT],Income[DESCRIPTION],\"<=\"&DtMiddle,Income[DESCRIPTION],\">=\"&DtStart)","v":{"v":0,"d":"$0.00"}},{"$f":"SUMIFS(Income[AMOUNT],Income[DESCRIPTION],\"<=\"&DtMiddle,Income[DESCRIPTION],\">=\"&DtStart)","v":{"v":0,"d":"$0.00"}},{"$f":"SUMIFS(Income[AMOUNT],Income[DESCRIPTION],\"<=\"&DtMiddle,Income[DESCRIPTION],\">=\"&DtStart)","v":{"v":0,"d":"$0.00"}},{"$f":"SUMIFS(Income[AMOUNT],Income[DESCRIPTION],\"<=\"&DtMiddle,Income[DESCRIPTION],\">=\"&DtStart)","v":{"v":0,"d":"$0.00"}},{"$f":"SUMIFS(Income[AMOUNT],Income[DESCRIPTION],\"<=\"&DtMiddle,Income[DESCRIPTION],\">=\"&DtStart)","v":{"v":0,"d":"$0.00"}},{"$f":"SUMIFS(Income[AMOUNT],Income[DESCRIPTION],\"<=\"&DtMiddle,Income[DESCRIPTION],\">=\"&DtStart)","v":{"v":0,"d":"$0.00"}},{"$f":"SUMIFS(Income[AMOUNT],Income[DESCRIPTION],\"<=\"&DtMiddle,Income[DESCRIPTION],\">=\"&DtStart)","v":{"v":0,"d":"$0.00"}},{"$f":"SUMIFS(Income[AMOUNT],Income[DESCRIPTION],\"<=\"&DtMiddle,Income[DESCRIPTION],\">=\"&DtStart)","v":{"v":0,"d":"$0.00"}},{"$f":"SUMIFS(Income[AMOUNT],Income[DESCRIPTION],\"<=\"&DtMiddle,Income[DESCRIPTION],\">=\"&DtStart)","v":{"v":0,"d":"$0.00"}},{"$f":"SUMIFS(Income[AMOUNT],Income[DESCRIPTION],\"<=\"&DtMiddle,Income[DESCRIPTION],\">=\"&DtStart)","v":{"v":0,"d":"$0.00"}},{"$f":"SUMIFS(Income[AMOUNT],Income[DESCRIPTION],\"<=\"&DtMiddle,Income[DESCRIPTION],\">=\"&DtStart)","v":{"v":0,"d":"$0.00"}},{"$f":"SUMIFS(Income[AMOUNT],Income[DESCRIPTION],\"<=\"&DtMiddle,Income[DESCRIPTION],\">=\"&DtStart)","v":{"v":0,"d":"$0.00"}}]
[null,null,"Income 16-EOM",{"$f":"SUMIFS(Income[AMOUNT],Income[DESCRIPTION],\"<=\"&DtEnd,Income[DESCRIPTION],\">=\"&DtMiddle+1)","v":{"v":0,"d":"$0.00"}},{"$f":"SUMIFS(Income[AMOUNT],Income[DESCRIPTION],\"<=\"&DtEnd,Income[DESCRIPTION],\">=\"&DtMiddle+1)","v":{"v":0,"d":"$0.00"}},{"$f":"SUMIFS(Income[AMOUNT],Income[DESCRIPTION],\"<=\"&DtEnd,Income[DESCRIPTION],\">=\"&DtMiddle+1)","v":{"v":0,"d":"$0.00"}},{"$f":"SUMIFS(Income[AMOUNT],Income[DESCRIPTION],\"<=\"&DtEnd,Income[DESCRIPTION],\">=\"&DtMiddle+1)","v":{"v":0,"d":"$0.00"}},{"$f":"SUMIFS(Income[AMOUNT],Income[DESCRIPTION],\"<=\"&DtEnd,Income[DESCRIPTION],\">=\"&DtMiddle+1)","v":{"v":0,"d":"$0.00"}},{"$f":"SUMIFS(Income[AMOUNT],Income[DESCRIPTION],\"<=\"&DtEnd,Income[DESCRIPTION],\">=\"&DtMiddle+1)","v":{"v":0,"d":"$0.00"}},{"$f":"SUMIFS(Income[AMOUNT],Income[DESCRIPTION],\"<=\"&DtEnd,Income[DESCRIPTION],\">=\"&DtMiddle+1)","v":{"v":0,"d":"$0.00"}},{"$f":"SUMIFS(Income[AMOUNT],Income[DESCRIPTION],\"<=\"&DtEnd,Income[DESCRIPTION],\">=\"&DtMiddle+1)","v":{"v":0,"d":"$0.00"}},{"$f":"SUMIFS(Income[AMOUNT],Income[DESCRIPTION],\"<=\"&DtEnd,Income[DESCRIPTION],\">=\"&DtMiddle+1)","v":{"v":0,"d":"$0.00"}},{"$f":"SUMIFS(Income[AMOUNT],Income[DESCRIPTION],\"<=\"&DtEnd,Income[DESCRIPTION],\">=\"&DtMiddle+1)","v":{"v":0,"d":"$0.00"}},{"$f":"SUMIFS(Income[AMOUNT],Income[DESCRIPTION],\"<=\"&DtEnd,Income[DESCRIPTION],\">=\"&DtMiddle+1)","v":{"v":0,"d":"$0.00"}},{"$f":"SUMIFS(Income[AMOUNT],Income[DESCRIPTION],\"<=\"&DtEnd,Income[DESCRIPTION],\">=\"&DtMiddle+1)","v":{"v":0,"d":"$0.00"}}]
[null,null,"Expenditures 1-15",{"$f":"SUMIFS(Expenditures[AMOUNT],Expenditures[DATE],\"<=\"&DtMiddle,Expenditures[DATE],\">=\"&DtStart)","v":{"v":0,"d":"$0.00"}},{"$f":"SUMIFS(Expenditures[AMOUNT],Expenditures[DATE],\"<=\"&DtEnd,Expenditures[DATE],\">=\"&DtStart)","v":{"v":0,"d":"$0.00"}},{"$f":"SUMIFS(Expenditures[AMOUNT],Expenditures[DATE],\"<=\"&DtEnd,Expenditures[DATE],\">=\"&DtStart)","v":{"v":0,"d":"$0.00"}},{"$f":"SUMIFS(Expenditures[AMOUNT],Expenditures[DATE],\"<=\"&DtEnd,Expenditures[DATE],\">=\"&DtStart)","v":{"v":0,"d":"$0.00"}},{"$f":"SUMIFS(Expenditures[AMOUNT],Expenditures[DATE],\"<=\"&DtEnd,Expenditures[DATE],\">=\"&DtStart)","v":{"v":1225,"d":"$1,225.00"}},{"$f":"SUMIFS(Expenditures[AMOUNT],Expenditures[DATE],\"<=\"&DtEnd,Expenditures[DATE],\">=\"&DtStart)","v":{"v":5425,"d":"$5,425.00"}},{"$f":"SUMIFS(Expenditures[AMOUNT],Expenditures[DATE],\"<=\"&DtEnd,Expenditures[DATE],\">=\"&DtStart)","v":{"v":3592,"d":"$3,592.00"}},{"$f":"SUMIFS(Expenditures[AMOUNT],Expenditures[DATE],\"<=\"&DtEnd,Expenditures[DATE],\">=\"&DtStart)","v":{"v":0,"d":"$0.00"}},{"$f":"SUMIFS(Expenditures[AMOUNT],Expenditures[DATE],\"<=\"&DtEnd,Expenditures[DATE],\">=\"&DtStart)","v":{"v":0,"d":"$0.00"}},{"$f":"SUMIFS(Expenditures[AMOUNT],Expenditures[DATE],\"<=\"&DtEnd,Expenditures[DATE],\">=\"&DtStart)","v":{"v":0,"d":"$0.00"}},{"$f":"SUMIFS(Expenditures[AMOUNT],Expenditures[DATE],\"<=\"&DtEnd,Expenditures[DATE],\">=\"&DtStart)","v":{"v":0,"d":"$0.00"}},{"$f":"SUMIFS(Expenditures[AMOUNT],Expenditures[DATE],\"<=\"&DtEnd,Expenditures[DATE],\">=\"&DtStart)","v":{"v":0,"d":"$0.00"}}]
[null,null,"Expenditures 16-EOM",{"$f":"SUMIFS(Expenditures[AMOUNT],Expenditures[DATE],\"<=\"&DtEnd,Expenditures[DATE],\">=\"&DtMiddle+1)","v":{"v":0,"d":"$0.00"}},{"$f":"SUMIFS(Expenditures[AMOUNT],Expenditures[DATE],\"<=\"&DtEnd,Expenditures[DATE],\">=\"&DtMiddle+1)","v":{"v":0,"d":"$0.00"}},{"$f":"SUMIFS(Expenditures[AMOUNT],Expenditures[DATE],\"<=\"&DtEnd,Expenditures[DATE],\">=\"&DtMiddle+1)","v":{"v":0,"d":"$0.00"}},{"$f":"SUMIFS(Expenditures[AMOUNT],Expenditures[DATE],\"<=\"&DtEnd,Expenditures[DATE],\">=\"&DtMiddle+1)","v":{"v":0,"d":"$0.00"}},{"$f":"SUMIFS(Expenditures[AMOUNT],Expenditures[DATE],\"<=\"&DtEnd,Expenditures[DATE],\">=\"&DtMiddle+1)","v":{"v":150,"d":"$150.00"}},{"$f":"SUMIFS(Expenditures[AMOUNT],Expenditures[DATE],\"<=\"&DtEnd,Expenditures[DATE],\">=\"&DtMiddle+1)","v":{"v":225,"d":"$225.00"}},{"$f":"SUMIFS(Expenditures[AMOUNT],Expenditures[DATE],\"<=\"&DtEnd,Expenditures[DATE],\">=\"&DtMiddle+1)","v":{"v":2142,"d":"$2,142.00"}},{"$f":"SUMIFS(Expenditures[AMOUNT],Expenditures[DATE],\"<=\"&DtEnd,Expenditures[DATE],\">=\"&DtMiddle+1)","v":{"v":0,"d":"$0.00"}},{"$f":"SUMIFS(Expenditures[AMOUNT],Expenditures[DATE],\"<=\"&DtEnd,Expenditures[DATE],\">=\"&DtMiddle+1)","v":{"v":0,"d":"$0.00"}},{"$f":"SUMIFS(Expenditures[AMOUNT],Expenditures[DATE],\"<=\"&DtEnd,Expenditures[DATE],\">=\"&DtMiddle+1)","v":{"v":0,"d":"$0.00"}},{"$f":"SUMIFS(Expenditures[AMOUNT],Expenditures[DATE],\"<=\"&DtEnd,Expenditures[DATE],\">=\"&DtMiddle+1)","v":{"v":0,"d":"$0.00"}},{"$f":"SUMIFS(Expenditures[AMOUNT],Expenditures[DATE],\"<=\"&DtEnd,Expenditures[DATE],\">=\"&DtMiddle+1)","v":{"v":0,"d":"$0.00"}}]

{"sheet":"Expenditures & Income","index":1,"n_rows":40,"n_cols":10,"rows_kept":40}
[]
[null,null,"Semi-Monthly Home Budget",{"$nulls":6},"INCOME  & EXPENDITURES"]
[]
[]
[]
[null,null,"INCOME",{"$nulls":3},"EXPENDITURES"]
[]
[null,null,"DATE","DESCRIPTION","AMOUNT",null,"DATE","CATEGORY","DESCRIPTION","AMOUNT"]
[null,null,{"$f":"NOW()-14","v":"2012-08-13T15:30:33.100"},"David's paycheck",{"v":1300,"d":"$1,300.00"},null,{"$f":"NOW()-7","v":"2012-08-20T15:30:33.100"},"Household","Mortgage",{"v":1000,"d":"$1,000.00"}]
[null,null,{"$f":"NOW()-14","v":"2012-08-13T15:30:33.100"},"Pat's paycheck",{"v":1300,"d":"$1,300.00"},null,{"$f":"NOW()-7","v":"2012-08-20T15:30:33.100"},"Household","Electricity",{"v":100,"d":"$100.00"}]
[null,null,{"$f":"NOW()-28","v":"2012-07-30T15:30:33.100"},"David's paycheck",{"v":1500,"d":"$1,500.00"},null,"2012-08-20T15:30:33.100","Household","Water/sewer",{"v":50,"d":"$50.00"}]
[null,null,"2012-07-30T15:30:33.100","Pat's paycheck",{"v":1600,"d":"$1,600.00"},null,"2012-08-20T15:30:33.100","Household","Garbage",{"v":25,"d":"$25.00"}]
[null,null,{"$f":"NOW()-42","v":"2012-07-16T15:30:33.100"},"David's paycheck",{"v":1300,"d":"$1,300.00"},null,"2012-08-20T15:30:33.100","Household","Cell phone",{"v":100,"d":"$100.00"}]
[null,null,"2012-07-16T15:30:33.100","Pat's paycheck",{"v":1300,"d":"$1,300.00"},null,"2012-08-20T15:30:33.100","Household","Home phone",{"v":30,"d":"$30.00"}]
[null,null,{"$f":"NOW()-56","v":"2012-07-02T15:30:33.100"},"David's paycheck",{"v":1500,"d":"$1,500.00"},null,"2012-08-20T15:30:33.100","Household","Internet",{"v":50,"d":"$50.00"}]
[null,null,"2012-07-02T15:30:33.100","Pat's paycheck",{"v":1600,"d":"$1,600.00"},null,"2012-08-20T15:30:33.100","Household","Television",{"v":50,"d":"$50.00"}]
[null,null,{"$f":"NOW()-70","v":"2012-06-18T15:30:33.100"},"David's paycheck",{"v":1300,"d":"$1,300.00"},null,"2012-08-20T15:30:33.100","Household","Maintenance/repairs",{"v":25,"d":"$25.00"}]
[{"$nulls":6},{"$f":"NOW()-8","v":"2012-08-19T15:30:33.100"},"Household","Credit Card 1 ",{"v":100,"d":"$100.00"}]
[{"$nulls":6},{"$f":"NOW()-9","v":"2012-08-18T15:30:33.100"},"Entertainment","Movies",{"v":37,"d":"$37.00"}]
[{"$nulls":6},{"$f":"NOW()-10","v":"2012-08-17T15:30:33.100"},"Food","Groceries",{"v":350,"d":"$350.00"}]
[{"$nulls":6},{"$f":"NOW()-11","v":"2012-08-16T15:30:33.100"},"Food","Dining out",{"v":75,"d":"$75.00"}]
[{"$nulls":6},{"$f":"NOW()-12","v":"2012-08-15T15:30:33.100"},"Children","Lunch money",{"v":150,"d":"$150.00"}]
[{"$nulls":6},{"$f":"NOW()-13","v":"2012-08-14T15:30:33.100"},"Investment Accounts","Savings",{"v":250,"d":"$250.00"}]
[{"$nulls":6},{"$f":"NOW()-14","v":"2012-08-13T15:30:33.100"},"Investment Accounts","Investment account",{"v":250,"d":"$250.00"}]
[{"$nulls":6},{"$f":"NOW()-15","v":"2012-08-12T15:30:33.100"},"Personal","Health/Fitness club",{"v":100,"d":"$100.00"}]
[{"$nulls":6},{"$f":"NOW()-16","v":"2012-08-11T15:30:33.100"},"Pets","Food",{"v":50,"d":"$50.00"}]
[{"$nulls":6},{"$f":"NOW()-20","v":"2012-08-07T15:30:33.100"},"Pets","Grooming",{"v":50,"d":"$50.00"}]
[{"$nulls":6},{"$f":"NOW()-20","v":"2012-08-07T15:30:33.100"},"Pets","Other",{"v":50,"d":"$50.00"}]
[{"$nulls":6},{"$f":"NOW()-25","v":"2012-08-02T15:30:33.100"},"Transportation","Car 1 Payment ",{"v":300,"d":"$300.00"}]
[{"$nulls":6},{"$f":"NOW()-25","v":"2012-08-02T15:30:33.100"},"Transportation","Car 2 Payment ",{"v":350,"d":"$350.00"}]
[{"$nulls":6},{"$f":"NOW()-25","v":"2012-08-02T15:30:33.100"},"Transportation","Car Insurance",{"v":50,"d":"$50.00"}]
[{"$nulls":6},{"$f":"NOW()-30","v":"2012-07-28T15:30:33.100"},"Transportation","Fuel",{"v":50,"d":"$50.00"}]
[{"$nulls":6},{"$f":"NOW()-31","v":"2012-07-27T15:30:33.100"},"Transportation","Fuel",{"v":25,"d":"$25.00"}]
[{"$nulls":6},{"$f":"NOW()-42","v":"2012-07-16T15:30:33.100"},"Transportation","Maintenance/Repairs",{"v":150,"d":"$150.00"}]
[{"$nulls":6},{"$f":"NOW()-45","v":"2012-07-13T15:30:33.100"},"Household","Mortgage",{"v":5000,"d":"$5,000.00"}]
[{"$nulls":6},{"$f":"NOW()-50","v":"2012-07-08T15:30:33.100"},"Household","Supplies",{"v":200,"d":"$200.00"}]
[{"$nulls":6},{"$f":"NOW()-65","v":"2012-06-23T15:30:33.100"},"Household","Home phone",{"v":100,"d":"$100.00"}]
[{"$nulls":6},{"$f":"NOW()-70","v":"2012-06-18T15:30:33.100"},"Household","Garbage",{"v":50,"d":"$50.00"}]
[{"$nulls":6},{"$f":"NOW()-75","v":"2012-06-13T15:30:33.100"},"Household","Mortgage",{"v":1000,"d":"$1,000.00"}]
[{"$nulls":6},{"$f":"NOW()-78","v":"2012-06-10T15:30:33.100"},"Entertainment","Movies",{"v":75,"d":"$75.00"}]

{"sheet":"Budget Report","index":2,"n_rows":41,"n_cols":8,"rows_kept":41}
[]
[null,null,"Semi-Monthly Home Budget",{"$nulls":4},"BUDGET REPORT"]
{"$rows_empty":10}
[null,null,"EXPENDITURES",null,null,"CATEGORY TOTALS"]
[]
[null,null,"DESCRIPTION","TOTALS "]
[null,null,"Car 1 Payment ",{"v":300,"d":"$300"}]
[null,null,"Car 2 Payment ",{"v":350,"d":"$350"}]
[null,null,"Car Insurance",{"v":50,"d":"$50"}]
[null,null,"Cell phone",{"v":100,"d":"$100"}]
[null,null,"Credit Card 1 ",{"v":100,"d":"$100"}]
[null,null,"Dining out",{"v":75,"d":"$75"}]
[null,null,"Electricity",{"v":100,"d":"$100"}]
[null,null,"Food",{"v":50,"d":"$50"}]
[null,null,"Fuel",{"v":75,"d":"$75"}]
[null,null,"Garbage",{"v":75,"d":"$75"}]
[null,null,"Groceries",{"v":350,"d":"$350"}]
[null,null,"Grooming",{"v":50,"d":"$50"}]
[null,null,"Health/Fitness club",{"v":100,"d":"$100"}]
[null,null,"Home phone",{"v":130,"d":"$130"}]
[null,null,"Internet",{"v":50,"d":"$50"}]
[null,null,"Investment account",{"v":250,"d":"$250"}]
[null,null,"Lunch money",{"v":150,"d":"$150"}]
[null,null,"Maintenance/repairs",{"v":175,"d":"$175"}]
[null,null,"Mortgage",{"v":7000,"d":"$7,000"}]
[null,null,"Movies",{"v":112,"d":"$112"}]
[null,null,"Other",{"v":50,"d":"$50"}]
[null,null,"Savings",{"v":250,"d":"$250"}]
[null,null,"Television",{"v":50,"d":"$50"}]
[null,null,"Water/sewer",{"v":50,"d":"$50"}]
[null,null,"Supplies",{"v":200,"d":"$200"}]
[null,null,"TOTAL",{"v":10242,"d":"$10,242"}]

{"sheet":"Data Lists","index":3,"n_rows":20,"n_cols":14,"rows_kept":20}
[]
[null,null,"Semi-Monthly Home Budget",{"$nulls":10},"DATA LISTS"]
[]
[]
[null,null,"SETUP         The Category data below populates the drop down lists in the Expenditures table on the Expenditures & Income sheet. Modify the category names or the descriptions below each category to update the lists."]
[]
[null,null,"Household","Entertainment","Food","Gifts/Donations","Children","Investment Accounts","Medical","Other","Personal","Pets","Taxes/Legal","Transportation"]
[null,null,"Mortgage","Movies","Groceries","Charity 1","Clothes","IRA","Doctor/Clinic","Other","Clothing","Food","Federal","Car 1 Payment "]
[null,null,"Electricity","Video/Movies","Dining out","Charity 2","Toys/Games","Savings","Insurance","Organization Dues","Hair/Nails","Supplies","State","Car 2 Payment "]
[null,null,"Water/Sewer","Music",null,"Charity 3","Lunch money","Checking",null,null,"Dry cleaning","Medical","Local","Car Insurance"]
[null,null,"Garbage","Concerts/Theater",null,"Gift","Dues/Fees","Retirement",null,null,"Health/Fitness club","Grooming","Other","Licensing/Registration"]
[null,null,"Cell phone","Sporting events",null,null,"School supplies","Investment account",null,null,"Shopping","Other","Attorney","Fuel"]
[null,null,"Home phone","Other",null,null,"Other","College",null,null,"Other",null,"Child support","Maintenance/Repairs"]
[null,null,"Internet",{"$nulls":3},"Laundry","Loans",{"$nulls":4},"Alimony","Public transit"]
[null,null,"Television",{"$nulls":4},"Student loans",{"$nulls":4},"Other"]
[null,null,"Maintenance/Repairs"]
[null,null,"Supplies"]
[null,null,"Cable/Internet/Phone"]
[null,null,"Credit Card 1 "]
[null,null,"Credit Card 2 "]

{"sheet":"Category PivotTable","index":4,"n_rows":16,"n_cols":14,"rows_kept":16,"hidden":true}
[]
[null,null,"Semi-Monthly Home Budget",{"$nulls":10},"CATEGORY PIVOT"]
[]
[]
[null,"This PivotTable is the data source for the Category Totals PivotChart on the Budget Report. "]
[]
[null,null,"Row Labels","Sum of AMOUNT"]
[null,null,"Children",{"v":150,"d":"$150"}]
[null,null,"Entertainment",{"v":112,"d":"$112"}]
[null,null,"Food",{"v":425,"d":"$425"}]
[null,null,"Household",{"v":7880,"d":"$7,880"}]
[null,null,"Investment Accounts",{"v":500,"d":"$500"}]
[null,null,"Personal",{"v":100,"d":"$100"}]
[null,null,"Pets",{"v":150,"d":"$150"}]
[null,null,"Transportation",{"v":925,"d":"$925"}]
[null,null,"Grand Total",{"v":10242,"d":"$10,242"}]